bitfinex-derivatives/quotes_BNBF0:USTF0_20250904
["timestamp","ask_amount","ask_price","bid_price","bid_amount"]
[1756983091876,0.20479563,849.71,849.19,0.78792467]
[1756983095179,0.20479563,849.71,849.19,0.78822363]
[1756983096374,0.20479563,849.71,849.18,0.78822363]
[1756983098582,0.20479563,849.71,849.2,0.78822363]
[1756983098879,0.20479563,849.71,849.18,0.78822363]
[1756983099678,0.20479563,849.71,849.17,0.78822363]
[1756983100483,0.20479563,849.71,849.18,0.78822363]
[1756983100779,0.20479563,849.71,849.13,0.78822363]
[1756983100983,0.20479563,849.71,849.1,0.78822363]
[1756983104383,0.20479563,849.71,849.11,0.78822363]
[1756983104584,0.20479563,849.71,849.12,0.78822363]
[1756983105686,0.20479563,849.71,849.14,0.78822363]
[1756983105887,0.20479563,849.71,849.15,0.78822363]
[1756983107490,0.20479563,849.71,849.16,0.78822363]
[1756983108290,0.20479563,849.71,849.17,0.78822363]
[1756983108489,0.20479563,849.71,849.16,0.78822363]
[1756983108890,0.20479563,849.71,849.15,0.78822363]
[1756983109391,0.20479563,849.71,849.16,0.78822363]
[1756983110188,0.20479563,849.71,849.15,0.78822363]
[1756983110488,0.20479563,849.71,849.15,0.78861939]
[1756983110889,0.20479563,849.71,849.16,0.78861939]
[1756983111093,0.20479563,849.71,849.15,0.78861939]
[1756983111392,0.20479563,849.71,849.16,0.78861939]
[1756983111693,0.20479563,849.71,849.15,0.78861939]
[1756983113294,0.20479563,849.71,849.16,0.78861939]
[1756983115193,0.20479563,849.71,849.15,0.78861939]
[1756983115992,0.20479563,849.71,849.16,0.78861939]
[1756983116394,0.20479563,849.71,849.17,0.78861939]
[1756983116791,0.20479563,849.71,849.1,0.78861939]
[1756983116994,0.20479563,849.71,849.11,0.78861939]
[1756983117693,0.20479563,849.71,849.1,0.78861939]
[1756983118094,0.20479563,849.71,849.17,0.78861939]
[1756983118295,0.20479563,849.71,849.15,0.78861939]
[1756983121300,0.20479563,849.71,849.12,0.78861939]
[1756983121600,0.20479563,849.71,849.11,0.78861939]
[1756983121794,0.79318732,849.68,849.15,0.78861939]
[1756983124504,0.79318732,849.7,849.13,0.78861939]
[1756983125501,0.20479563,849.71,849.04,0.78861939]
[1756983125898,0.79318732,849.65,849.09,0.78861939]
[1756983126401,0.79318732,849.66,849.09,0.78861939]
[1756983126602,0.20479563,849.71,849.0,0.78861939]
[1756983127199,0.20479563,849.71,848.99,0.78861939]
[1756983128905,0.20479563,849.71,849.0,0.78861939]
[1756983129407,0.20479563,849.71,848.99,0.78861939]
[1756983132006,0.20479563,849.71,848.98,0.78861939]
[1756983134307,0.20479563,849.71,848.97,0.78861939]
[1756983136408,0.20479563,849.71,849.02,0.78861939]
[1756983136710,0.20479563,849.71,849.01,0.78861939]
[1756983137204,0.20479563,849.71,849.03,0.78861939]
[1756983137404,0.20479563,849.71,849.04,0.78861939]
[1756983138209,0.20479563,849.71,849.05,0.78861939]
[1756983141915,0.20479563,849.71,849.06,0.78861939]
[1756983146915,0.20479563,849.71,849.07,0.78861939]
[1756983148015,0.20479563,849.71,849.08,0.78861939]
[1756983149013,0.20479563,849.71,849.07,0.78861939]
[1756983149316,0.20479563,849.71,849.08,0.78861939]
[1756983150114,0.20479563,849.71,849.09,0.78861939]
[1756983154212,0.20479563,849.71,849.1,0.78861939]
[1756983155817,0.20479563,849.71,849.08,0.78861939]
[1756983156414,0.20479563,849.71,849.09,0.78861939]
[1756983156812,0.20479563,849.71,849.08,0.78861939]
[1756983157317,0.20479563,849.71,849.09,0.78861939]
[1756983158016,0.99798295,849.71,849.07,0.78861939]
[1756983158217,0.20479563,849.71,849.07,0.78861939]
[1756983158418,0.99798295,849.71,849.05,0.78861939]
[1756983158713,0.79318732,849.7,849.06,0.78861939]
[1756983160215,0.79318732,849.69,849.06,0.78861939]
[1756983160418,0.79318732,849.7,849.06,0.78861939]
[1756983162914,0.79318732,849.68,849.07,0.78861939]
[1756983164520,0.79318732,849.69,849.06,0.78861939]
[1756983165218,0.79318732,849.7,849.06,0.78861939]
[1756983165419,0.79318732,849.69,849.06,0.78861939]
[1756983166522,0.79318732,849.69,849.07,0.78861939]
[1756983167424,0.79318732,849.7,849.06,0.78861939]
[1756983168124,0.79318732,849.69,849.07,0.78861939]
[1756983168317,0.79318732,849.7,849.06,0.78861939]
[1756983168823,0.20479563,849.71,849.06,0.78861939]
[1756983168824,0.79318732,849.69,849.06,0.78861939]
[1756983169325,0.79318732,849.69,849.07,0.78861939]
[1756983170325,0.79318732,849.7,849.07,0.78861939]
[1756983170525,0.99798295,849.71,849.07,0.78861939]
[1756983171319,0.79318732,849.7,849.07,0.78861939]
[1756983172421,0.79318732,849.7,849.08,0.78861939]
[1756983172827,0.79318732,849.69,849.08,0.78861939]
[1756983173623,0.79318732,849.7,849.07,0.78861939]
[1756983174220,0.79318732,849.69,849.08,0.78861939]
[1756983175424,0.79318732,849.69,849.09,0.78861939]
[1756983176426,0.79318732,849.68,849.09,0.78861939]
[1756983176726,0.79318732,849.69,849.08,0.78861939]
[1756983177124,0.79318732,849.7,849.08,0.78861939]
[1756983177526,0.79318732,849.69,849.09,0.78861939]
[1756983178422,0.79318732,849.68,849.09,0.78861939]
[1756983179525,0.79318732,849.68,849.1,0.78861939]
[1756983179826,0.79318732,849.69,849.09,0.78861939]
[1756983180122,0.79318732,849.68,849.1,0.78861939]
[1756983180927,0.79318732,849.67,849.1,0.78861939]
[1756983182928,0.79318732,849.68,849.09,0.78861939]
[1756983183522,0.79318732,849.67,849.1,0.78861939]
[1756983183828,0.79318732,849.68,849.09,0.78861939]
[1756983184827,0.79318732,849.67,849.09,0.78861939]
[1756983185228,0.79318732,849.68,849.09,0.78861939]
[1756983186029,0.79318732,849.68,849.08,0.78861939]
[1756983186329,0.79318732,849.69,849.08,0.78861939]
[1756983186925,0.79318732,849.68,849.08,0.78861939]
[1756983189026,0.79318732,849.69,849.08,0.78861939]
[1756983189725,0.79318732,849.68,849.08,0.78861939]
[1756983190030,0.79318732,849.69,849.09,0.78861939]
[1756983192231,0.79318732,849.7,849.08,0.78861939]
[1756983192431,0.79318732,849.69,849.09,0.78861939]
[1756983193337,0.79318732,849.68,849.09,0.78861939]
[1756983195436,0.79318732,849.69,849.09,0.78861939]
[1756983195936,0.20479563,849.71,849.09,0.78861939]
[1756983195937,0.79318732,849.68,849.09,0.78861939]
[1756983196233,0.99798295,849.71,849.03,0.78861939]
[1756983198441,0.79318732,849.7,849.02,0.78861939]
[1756983203846,0.79318732,849.7,848.97,0.78861939]
[1756983204643,0.79318732,849.65,848.98,0.78861939]
[1756983205245,0.79318732,849.65,848.97,0.78861939]
[1756983207553,0.79318732,849.64,848.95,0.78861939]
[1756983210660,0.79318732,849.65,848.94,0.78861939]
[1756983213660,0.79318732,849.61,848.97,0.78861939]
[1756983214462,0.79318732,849.61,848.79,1.0582746]
[1756983214463,0.79318732,849.59,848.98,0.78861939]
[1756983216765,0.79318732,849.61,848.97,0.78861939]
[1756983217161,0.79318732,849.6,848.97,0.78861939]
[1756983217566,0.79318732,849.6,848.98,0.78861939]
[1756983217766,0.79318732,849.61,848.96,0.78861939]
[1756983219264,0.79318732,849.62,848.96,0.78861939]
[1756983220363,0.79318732,849.63,848.95,0.78861939]
[1756983220562,0.79318732,849.62,848.96,0.78861939]
[1756983222964,0.20479563,849.71,848.95,0.78861939]
[1756983222965,0.79318732,849.63,848.95,0.78861939]
[1756983223670,0.79318732,849.62,848.96,0.78861939]
[1756983225570,0.79318732,849.62,848.95,0.78861939]
[1756983226065,0.79318732,849.63,848.95,0.78861939]
[1756983227571,0.79318732,849.61,848.96,0.78861939]
[1756983229069,0.79318732,849.62,848.96,0.78861939]
[1756983229470,0.79318732,849.64,848.94,0.78861939]
[1756983229970,0.79318732,849.64,848.95,0.78861939]
[1756983231369,0.79318732,849.64,848.94,0.78861939]
[1756983231668,0.79318732,849.64,848.95,0.78861939]
[1756983232172,0.79318732,849.64,848.94,0.78861939]
[1756983234771,0.79318732,849.65,848.94,0.78861939]
[1756983235272,0.79318732,849.65,848.93,0.78861939]
[1756983235567,0.79318732,849.65,848.94,0.78861939]
[1756983236773,0.79318732,849.64,848.94,0.78861939]
[1756983238370,0.79318732,849.65,848.94,0.78861939]
[1756983238974,0.79318732,849.64,848.94,0.78861939]
[1756983239372,0.79318732,849.63,848.95,0.78861939]
[1756983239773,0.79318732,849.64,848.95,0.78861939]
[1756983240077,0.79318732,849.64,848.94,0.78861939]
[1756983240271,0.79318732,849.64,848.95,0.78861939]
[1756983242079,0.79318732,849.64,848.96,0.78861939]
[1756983243275,0.79318732,849.63,848.96,0.78861939]
[1756983244480,0.79318732,849.64,848.96,0.78861939]
[1756983244680,0.79318732,849.63,848.96,0.78861939]
[1756983244880,0.79318732,849.64,848.96,0.78861939]
[1756983245180,0.79318732,849.63,848.96,0.78861939]
[1756983245879,0.79318732,849.63,848.97,0.78861939]
[1756983246983,0.79318732,849.63,848.96,0.78861939]
[1756983247283,0.79318732,849.63,848.97,0.78861939]
[1756983247684,0.20479563,849.71,848.98,0.78861939]
[1756983247685,0.79318732,849.61,848.98,0.78861939]
[1756983248079,0.79318732,849.61,848.97,0.78861939]
[1756983249286,0.79318732,849.6,848.97,0.78861939]
[1756983249586,0.79318732,849.62,848.96,0.78861939]
[1756983250286,0.79318732,849.62,848.97,0.78861939]
[1756983251286,0.79318732,849.6,848.97,0.78861939]
[1756983251690,0.79318732,849.67,848.93,0.78861939]
[1756983252990,0.79318732,849.67,848.94,0.78861939]
[1756983253190,0.79318732,849.67,848.93,0.78861939]
[1756983253489,0.79318732,849.67,848.71,1.0582746]
[1756983253490,0.79318732,849.66,848.94,0.78861939]
[1756983253785,0.79318732,849.67,848.93,0.78861939]
[1756983254289,0.79318732,849.66,848.94,0.78861939]
[1756983254789,0.79318732,849.67,848.94,0.78861939]
[1756983255088,0.79318732,849.66,848.93,0.78861939]
[1756983255790,0.79318732,849.65,848.93,0.78861939]
[1756983256988,0.79318732,849.64,848.92,0.78861939]
[1756983257287,0.79318732,849.63,848.92,0.78861939]
[1756983257487,0.79318732,849.64,848.92,0.78861939]
[1756983258491,0.79318732,849.63,848.92,0.78861939]
[1756983258691,0.79318732,849.63,848.93,0.78861939]
[1756983258992,0.79318732,849.62,848.93,0.78861939]
[1756983259994,0.79318732,849.55,848.98,0.78861939]
[1756983260191,0.79318732,849.56,848.97,0.78861939]
[1756983262190,0.79318732,849.55,848.98,0.78861939]
[1756983262390,0.79318732,849.54,848.98,0.78861939]
[1756983262594,0.79318732,849.55,848.98,0.78861939]
[1756983263597,0.79318732,849.58,848.96,0.78861939]
[1756983264295,0.20479563,849.71,848.84,0.78861939]
[1756983264495,0.79318732,849.61,848.71,0.78861939]
[1756983264695,0.79318732,849.61,848.7,0.78861939]
[1756983264992,0.79318732,849.6,848.7,0.78861939]
[1756983265190,0.79318732,849.6,848.71,0.78861939]
[1756983265391,0.79318732,849.62,848.69,0.78861939]
[1756983266092,0.79318732,849.6,848.7,0.78861939]
[1756983266295,0.79318732,849.61,848.69,0.78861939]
[1756983266491,0.20488606,849.38,848.69,0.78861939]
[1756983267298,0.20488606,849.38,848.68,0.78861939]
[1756983268296,0.20488606,849.38,848.67,0.78861939]
[1756983268598,0.20488606,849.38,848.68,0.78861939]
[1756983270301,0.20488606,849.38,848.4,1.0582746]
[1756983270302,0.20488606,849.38,848.67,0.78861939]
[1756983270797,0.20488606,849.38,848.66,0.78861939]
[1756983272299,0.20488606,849.38,848.71,0.78861939]
[1756983272498,0.20488606,849.38,848.7,0.78861939]
[1756983273601,0.20488606,849.38,848.69,0.78861939]
[1756983275309,0.20488606,849.38,848.68,0.78861939]
[1756983276310,0.20488606,849.38,848.67,0.78861939]
[1756983278512,0.20488606,849.38,848.66,0.78861939]
[1756983280513,0.20488606,849.38,848.46,1.0582746]
[1756983280514,0.20488606,849.38,848.65,0.78861939]
[1756983281215,0.20488606,849.38,848.66,0.78861939]
[1756983281510,0.20488606,849.38,848.65,0.78861939]
[1756983282314,0.20488606,849.38,848.34,0.20487159]
[1756983282315,0.20488606,849.38,848.66,0.78861939]
[1756983282915,0.20488606,849.38,848.67,0.78861939]
[1756983283318,0.20488606,849.38,848.66,0.78861939]
[1756983284516,0.20488606,849.38,848.65,0.78861939]
[1756983284816,0.20488606,849.38,848.66,0.78861939]
[1756983285317,0.20488606,849.38,848.67,0.78861939]
[1756983285512,0.20488606,849.38,848.66,0.78861939]
[1756983290520,0.20488606,849.38,848.64,0.78861939]
[1756983291820,0.20488606,849.38,848.62,0.78861939]
[1756983292316,0.20488606,849.38,848.61,0.78861939]
[1756983293021,0.20488606,849.38,848.56,0.78861939]
[1756983298023,0.20488606,849.38,848.57,0.78861939]
[1756983298922,0.20488606,849.38,848.58,0.78861939]
[1756983299923,0.20488606,849.38,848.65,0.78861939]
[1756983302120,0.20488606,849.38,848.66,0.78861939]
[1756983303219,0.20488606,849.38,848.65,0.78861939]
[1756983303519,0.20488606,849.38,848.66,0.78861939]
[1756983303719,0.20488606,849.38,848.65,0.78861939]
[1756983304218,0.20488606,849.38,848.66,0.78861939]
[1756983306125,0.20488606,849.38,848.65,0.78861939]
[1756983306628,0.20488606,849.38,848.66,0.78861939]
[1756983306832,0.20488606,849.38,848.67,0.78861939]
[1756983310337,0.20488606,849.38,848.68,0.78861939]
[1756983312135,0.20488606,849.38,848.69,0.78861939]
[1756983312536,0.20488606,849.38,848.68,0.78861939]
[1756983313338,0.20488606,849.38,848.69,0.78861939]
[1756983314438,0.20488606,849.38,848.7,0.78861939]
[1756983316340,0.20488606,849.38,848.36,1.5874119]
[1756983316341,0.20488606,849.38,848.71,0.78861939]
[1756983317444,0.20488606,849.38,848.72,0.78861939]
[1756983318646,0.20488606,849.38,848.71,0.78861939]
[1756983319043,0.20488606,849.38,848.72,0.78861939]
[1756983319443,0.20488606,849.38,848.73,0.78861939]
[1756983320440,0.20488606,849.38,848.74,0.78861939]
[1756983320839,0.99807338,849.38,848.73,0.78861939]
[1756983321344,0.79318732,849.37,848.74,0.78861939]
[1756983321642,0.20488606,849.38,848.72,0.78861939]
[1756983322339,0.99807338,849.38,848.73,0.78861939]
[1756983323242,0.99807338,849.38,848.74,0.78861939]
[1756983323440,0.79318732,849.37,848.75,0.78861939]
[1756983323940,0.79318732,849.36,848.75,0.78861939]
[1756983324339,0.79318732,849.35,848.77,0.78861939]
[1756983324544,0.79318732,849.36,848.76,0.78861939]
[1756983324843,0.79318732,849.37,848.75,0.78861939]
[1756983325444,0.79318732,849.36,848.76,0.78861939]
[1756983327544,0.79318732,849.37,848.75,0.78861939]
[1756983328549,0.79318732,849.35,848.74,0.78861939]
[1756983328749,0.79318732,849.36,848.74,0.78861939]
[1756983329449,0.79318732,849.36,848.75,0.78861939]
[1756983329848,0.79318732,849.36,848.74,0.78861939]
[1756983330052,0.79318732,849.36,848.75,0.78861939]
[1756983330253,0.79318732,849.36,848.74,0.78861939]
[1756983330550,0.79318732,849.35,848.75,0.78861939]
[1756983330753,0.79318732,849.36,848.74,0.78861939]
[1756983331053,0.79318732,849.35,848.75,0.78861939]
[1756983331353,0.79318732,849.36,848.75,0.78861939]
[1756983331552,0.79318732,849.35,848.75,0.78861939]
[1756983332450,0.79318732,849.34,848.76,0.78861939]
[1756983333751,0.79318732,849.35,848.75,0.78861939]
[1756983333950,0.79318732,849.36,848.75,0.78861939]
[1756983335153,0.79318732,849.34,848.75,0.78861939]
[1756983335452,0.79318732,849.35,848.75,0.78861939]
[1756983335653,0.79318732,849.34,848.76,0.78861939]
[1756983336755,0.79318732,849.35,848.75,0.78861939]
[1756983337152,0.79318732,849.37,848.74,0.78861939]
[1756983337455,0.79318732,849.36,848.74,0.78861939]
[1756983340254,0.79318732,849.37,848.74,0.78861939]
[1756983341660,0.79318732,849.36,848.74,0.78861939]
[1756983342059,0.79318732,849.35,848.75,0.78861939]
[1756983342461,0.79318732,849.31,848.78,0.78861939]
[1756983342957,0.79318732,849.33,848.76,0.78861939]
[1756983343157,0.79318732,849.34,848.76,0.78861939]
[1756983343961,0.79318732,849.35,848.75,0.78861939]
[1756983349269,0.79318732,849.36,848.74,0.78861939]
[1756983350069,0.79318732,849.35,848.75,0.78861939]
[1756983351666,0.79318732,849.34,848.76,0.78861939]
[1756983352065,0.20488606,849.38,848.25,0.20490778]
[1756983352066,0.79318732,849.32,848.77,0.78861939]
[1756983352270,0.79318732,849.33,848.77,0.78861939]
[1756983352467,0.79318732,849.34,848.76,0.78861939]
[1756983354169,0.79318732,849.33,848.76,0.78861939]
[1756983355171,0.20488606,849.38,848.76,0.78861939]
[1756983355172,0.79318732,849.34,848.76,0.78861939]
[1756983355577,0.79318732,849.35,848.75,0.78861939]
[1756983358374,0.79318732,849.36,848.74,0.78861939]
[1756983358677,0.79318732,849.35,848.75,0.78861939]
[1756983360780,0.79318732,849.34,848.76,0.78861939]
[1756983361780,0.79318732,849.35,848.75,0.78861939]
[1756983361982,0.79318732,849.34,848.76,0.78861939]
[1756983362480,0.79318732,849.33,848.76,0.78861939]
[1756983363482,0.79318732,849.34,848.76,0.78861939]
[1756983364486,0.79318732,849.32,848.76,0.78861939]
[1756983364786,0.79318732,849.34,848.76,0.78861939]
[1756983366990,0.79318732,849.32,848.77,0.78861939]
[1756983367490,0.79318732,849.31,848.78,0.78861939]
[1756983367687,0.79318732,849.33,848.76,0.78861939]
[1756983367990,0.79318732,849.34,848.76,0.78861939]
[1756983368992,0.20488606,849.38,848.67,0.78861939]
[1756983369192,0.20488606,849.38,848.7,0.78861939]
[1756983369391,0.20488606,849.38,848.71,0.78861939]
[1756983370791,0.20488606,849.38,848.7,0.78861939]
[1756983372588,0.20488606,849.38,848.71,0.78861939]
[1756983373495,0.20488606,849.38,848.7,0.78861939]
[1756983373994,0.20488606,849.38,848.75,0.78861939]
[1756983374193,0.20488606,849.38,848.25,0.20490778]
[1756983374194,0.99807338,849.38,848.77,0.78861939]
[1756983374395,0.79318732,849.37,848.78,0.78861939]
[1756983376893,0.79318732,849.35,848.79,0.78861939]
[1756983377099,0.79318732,849.36,848.79,0.78861939]
[1756983377397,0.79318732,849.37,848.78,0.78861939]
[1756983380196,0.20488606,849.38,848.77,0.78861939]
[1756983380399,0.79318732,849.36,848.77,0.78861939]
[1756983382998,0.79318732,849.36,848.78,0.78861939]
[1756983383298,0.79318732,849.35,848.77,0.78861939]
[1756983383497,0.79318732,849.36,848.76,0.78861939]
[1756983383998,0.79318732,849.35,848.77,0.78861939]
[1756983384201,0.99807338,849.38,848.75,0.78861939]
[1756983386700,0.79318732,849.37,848.74,0.78861939]
[1756983389306,0.79318732,849.36,848.72,0.78861939]
[1756983389500,0.79318732,849.37,848.72,0.78861939]
[1756983390604,0.79318732,849.33,848.7,0.78861939]
[1756983392406,0.79318732,849.32,848.71,0.78861939]
[1756983392605,0.79318732,849.31,848.7,0.78861939]
[1756983392802,0.79318732,849.3,848.71,0.78861939]
[1756983394206,0.79318732,849.3,848.7,0.78861939]
[1756983394704,0.79318732,849.31,848.7,0.78861939]
[1756983395210,0.79318732,849.3,848.7,0.78861939]
[1756983395509,0.79318732,849.31,848.7,0.78861939]
[1756983398209,0.79318732,849.32,848.69,0.78861939]
[1756983398610,0.79318732,849.33,848.68,0.78861939]
[1756983398807,0.79318732,849.33,848.48,1.0582746]
[1756983398808,0.79318732,849.33,848.69,0.78861939]
[1756983399612,0.79318732,849.33,848.68,0.78861939]
[1756983400409,0.79318732,849.31,848.67,0.78861939]
[1756983400608,0.79318732,849.28,848.64,0.78861939]
[1756983401708,0.79318732,849.25,848.62,0.78861939]
[1756983401912,0.79318732,849.26,848.61,0.78861939]
[1756983403213,0.79318732,849.27,848.6,0.78861939]
[1756983404608,0.79318732,849.29,848.59,0.78861939]
[1756983405111,0.79318732,849.29,848.58,0.78861939]
[1756983405708,0.79318732,849.28,848.58,0.78861939]
[1756983406113,0.79318732,849.29,848.57,0.78861939]
[1756983407316,0.79318732,849.29,848.36,1.0582746]
[1756983407317,0.79318732,849.28,848.56,0.78861939]
[1756983407916,0.79318732,849.29,848.55,0.78861939]
[1756983408212,0.79318732,849.3,848.55,0.78861939]
[1756983409311,0.79318732,849.3,848.54,0.78861939]
[1756983410212,0.79318732,849.31,848.54,0.78861939]
[1756983410411,0.79318732,849.3,848.54,0.78861939]
[1756983411119,0.79318732,849.31,848.54,0.78861939]
[1756983411418,0.79318732,849.28,848.44,0.78861939]
[1756983412217,0.79318732,849.29,848.44,0.78861939]
[1756983412714,0.20488606,849.38,848.16,0.20493432]
[1756983412715,0.79318732,849.3,848.43,0.78861939]
[1756983413220,0.79318732,849.31,848.42,0.78861939]
[1756983413413,0.79318732,849.3,848.43,0.78861939]
[1756983414318,0.79318732,849.31,848.42,0.78861939]
[1756983415014,0.79318732,849.3,848.41,0.78861939]
[1756983415719,0.79318732,849.23,848.46,0.78861939]
[1756983416014,0.79318732,849.2,848.43,0.78861939]
[1756983416218,0.79318732,849.2,848.42,0.78861939]
[1756983416614,0.79318732,849.2,848.41,0.78861939]
[1756983417219,0.79318732,849.18,848.39,0.78861939]
[1756983417418,0.79318732,849.18,848.4,0.78861939]
[1756983418117,0.79318732,849.18,848.39,0.78861939]
[1756983418419,0.79318732,849.16,848.41,0.78861939]
[1756983418922,0.79318732,849.14,848.37,0.78861939]
[1756983419218,0.79318732,849.14,848.36,0.78861939]
[1756983420314,0.79318732,849.15,848.35,0.78861939]
[1756983420515,0.79318732,849.16,848.35,0.78861939]
[1756983420819,0.79318732,849.17,848.35,0.78861939]
[1756983421114,0.79318732,849.16,848.36,0.78861939]
[1756983421318,0.79318732,849.17,848.35,0.78861939]
[1756983422021,0.79318732,849.18,848.34,0.78861939]
[1756983423517,0.79318732,849.19,848.33,0.78861939]
[1756983423717,0.79318732,849.21,848.33,0.78861939]
[1756983423923,0.79318732,849.26,848.36,0.78861939]
[1756983424922,0.79318732,849.27,848.35,0.78861939]
[1756983425623,0.79318732,849.28,848.34,0.78861939]
[1756983427323,0.79318732,849.29,848.34,0.78861939]
[1756983427825,0.20488606,849.38,848.02,0.20496027]
[1756983427826,0.79318732,849.25,848.31,0.78861939]
[1756983428021,0.79318732,849.26,848.3,0.78861939]
[1756983429631,0.79318732,849.27,848.3,0.78861939]
[1756983430430,0.79318732,849.27,848.29,0.78861939]
[1756983430733,0.79318732,849.26,848.3,0.78861939]
[1756983431235,0.79318732,849.21,848.27,0.78861939]
[1756983431434,0.79318732,849.21,848.26,0.78861939]
[1756983432231,0.79318732,849.21,848.27,0.78861939]
[1756983432435,0.79318732,849.22,848.27,0.78861939]
[1756983432732,0.79318732,849.2,848.26,0.78861939]
[1756983432934,0.79318732,849.17,848.27,0.78861939]
[1756983433336,0.79318732,849.18,848.27,0.78861939]
[1756983433638,0.79318732,849.16,848.27,0.78861939]
[1756983434138,0.79318732,849.16,848.28,0.78861939]
[1756983434334,0.79318732,849.17,848.27,0.78861939]
[1756983434638,0.79318732,849.17,848.08,1.0582746]
[1756983434639,0.79318732,849.17,848.26,0.78861939]
[1756983434838,0.79318732,849.16,848.25,0.78861939]
[1756983437436,0.79318732,849.18,848.24,0.78861939]
[1756983439845,1.26140446,849.38,848.04,1.0582746]
[1756983440041,1.26140446,849.38,848.24,0.79124204]
[1756983440042,0.79165139,849.18,848.24,0.79124204]
[1756983440542,0.79165139,849.19,848.23,0.79124204]
[1756983441642,0.79165139,849.17,848.24,0.79124204]
[1756983441944,0.79165139,849.18,848.24,0.79124204]
[1756983442643,0.79165139,849.18,848.23,0.79124204]
[1756983442842,0.79165139,849.18,848.24,0.79124204]
[1756983443139,0.79165139,849.17,848.24,0.79124204]
[1756983443442,0.79165139,849.18,848.24,0.79124204]
[1756983444542,0.79165139,849.17,848.24,0.79124204]
[1756983445043,0.79165139,849.16,848.25,0.79124204]
[1756983446743,0.79165139,849.17,848.24,0.79124204]
[1756983447239,0.79165139,849.17,848.25,0.79124204]
[1756983448140,0.79165139,849.17,848.24,0.79124204]
[1756983448646,0.79165139,849.17,847.9,0.20498563]
[1756983448647,0.79165139,849.16,848.25,0.79124204]
[1756983448941,0.79165139,849.15,848.25,0.79124204]
[1756983449645,0.20488606,849.38,848.24,0.79124204]
[1756983449646,0.79165139,849.16,848.24,0.79124204]
[1756983449845,0.79165139,849.15,848.24,0.79124204]
[1756983450146,0.79165139,849.15,848.25,0.79124204]
[1756983451144,0.79165139,849.12,848.23,0.79124204]
[1756983452746,0.79165139,849.13,848.23,0.79124204]
[1756983453145,0.79165139,849.12,848.23,0.79124204]
[1756983454346,0.79165139,849.11,848.24,0.79124204]
[1756983455952,0.79165139,849.12,848.23,0.79124204]
[1756983456250,0.79165139,849.12,848.24,0.79124204]
[1756983457151,0.79165139,849.11,848.24,0.79124204]
[1756983457353,0.79165139,849.12,848.24,0.79124204]
[1756983458053,0.79165139,849.1,848.22,0.79124204]
[1756983458253,0.79165139,849.08,848.24,0.79124204]
[1756983458653,0.79165139,849.07,848.22,0.79124204]
[1756983458854,0.79165139,849.08,848.21,0.79124204]
[1756983459053,0.79165139,849.08,848.22,0.79124204]
[1756983459351,0.79165139,849.02,848.23,0.79124204]
[1756983459755,0.79165139,849.01,848.22,0.79124204]
[1756983460049,0.79165139,849.01,848.23,0.79124204]
[1756983460254,0.79165139,849.0,848.23,0.79124204]
[1756983460457,0.79165139,848.96,848.22,0.79124204]
[1756983461254,0.79165139,848.95,848.23,0.79124204]
[1756983461455,0.79165139,848.96,848.22,0.79124204]
[1756983461955,0.79165139,848.98,848.21,0.79124204]
[1756983462956,0.79165139,849.01,848.24,0.79124204]
[1756983463457,1.0565184,849.18,847.9,0.20498563]
[1756983463458,0.79165139,849.02,848.23,0.79124204]
[1756983464456,0.79165139,849.01,848.24,0.79124204]
[1756983465260,0.79165139,849.03,848.23,0.79124204]
[1756983466059,0.79165139,849.02,848.22,0.79124204]
[1756983466860,0.20500434,848.89,848.22,0.79124204]
[1756983470359,0.20500434,848.89,847.9,0.20498563]
[1756983470360,0.20500434,848.89,848.23,0.79124204]
[1756983471158,0.20500434,848.89,848.24,0.79124204]
[1756983471363,0.20500434,848.89,848.23,0.79124204]
[1756983473161,0.20500434,848.89,848.24,0.79124204]
[1756983474466,0.20500434,848.89,848.22,0.79124204]
[1756983477067,0.20500434,848.89,848.21,0.79124204]
[1756983477265,0.20500434,848.89,848.22,0.79124204]
[1756983477468,0.20500434,848.89,848.21,0.79124204]
[1756983477667,0.20500434,848.89,848.22,0.79124204]
[1756983478871,0.20500434,848.89,848.21,0.79124204]
[1756983479172,0.20500434,848.89,848.22,0.79124204]
[1756983479871,0.20500434,848.89,848.23,0.79124204]
[1756983480074,0.20500434,848.89,848.22,0.79124204]
[1756983481573,0.20500434,848.89,848.25,0.79124204]
[1756983481968,0.20500434,848.89,848.24,0.79124204]
[1756983483474,0.20500434,848.89,848.25,0.79124204]
[1756983483672,0.20500434,848.89,848.24,0.79124204]
[1756983484570,0.20500434,848.89,848.25,0.79124204]
[1756983485074,0.20500434,848.89,848.24,0.79124204]
[1756983485477,0.20500434,848.89,848.25,0.79124204]
[1756983486174,0.20500434,848.89,848.24,0.79124204]
[1756983486379,0.20500434,848.89,848.25,0.79124204]
[1756983486678,0.20500434,848.89,848.24,0.79124204]
[1756983489378,0.20500434,848.89,848.25,0.79124204]
[1756983489779,0.20500434,848.89,847.9,0.20498563]
[1756983489780,0.20500434,848.89,848.24,0.79124204]
[1756983490580,0.20500434,848.89,848.25,0.79124204]
[1756983493480,0.20500434,848.89,848.26,0.79124204]
[1756983494684,0.20500434,848.89,848.27,0.79124204]
[1756983495285,0.20500434,848.89,848.28,0.79124204]
[1756983496486,0.20500434,848.89,848.29,0.79124204]
[1756983497386,0.20500434,848.89,848.26,0.79124204]
[1756983497589,0.20500434,848.89,848.27,0.79124204]